[Event "1st Bangalore GM-Open-A 2024"]
[Site "Bangalore"]
[Date "2024.01.20"]
[Round "4.11"]
[White "Ilamparthi A R"]
[Black "Sarwat, Walaa"]
[Result "1-0"]
[ECO "C84"]
[WhiteElo "2426"]
[BlackElo "2175"]
[Annotator "RC"]
[PlyCount "135"]
[EventDate "2024.01.20"]
[EventType "swiss"]
[EventCountry "IND"]
[SourceTitle "playchess.com"]
[Source "ChessBase"]
[SourceQuality "1"]
[TimeControl "5400+30"]

1. e4 {[%emt 0:00:03]} e5 {[%emt 0:00:13]} 2. Nf3 {[%emt 0:00:03]} Nc6 {[%emt 0:00:14]} 3. Bb5 {[%emt 0:00:05]} a6 {[%emt 0:00:33]} 4. Ba4 {[%emt 0:00:02]} Nf6 {[%emt 0:00:15]} 5. O-O {[%emt 0:00:08]} b5 {[%emt 0:00:46]} 6. Bb3 {[%emt 0:00:07]} Be7 {[%emt 0:01:00]} 7. d3 {[%emt 0:01:15]} O-O {[%emt 0:00:58]} 8. a4 {[%emt 0:00:46]} Bb7 {[%emt 0:01:01]} 9. c3 {[%emt 0:03:44]} d6 {[%emt 0:01:43]} 10. Bg5 {[%emt 0:00:07]} Na5 {[%emt 0:02:09]} 11. Ba2 {[%emt 0:03:03]} c5 {[%emt 0:00:27]} 12. Nbd2 {[%emt 0:00:21]} Nd7 {[%emt 0:02:48]} 13. Be3 {[%emt 0:00:13]} Kh8 {[%emt 0:00:50]} 14. d4 {[%emt 0:10:36]} cxd4 {[%emt 0:15:25]} 15. cxd4 {[%emt 0:00:24]} exd4 {[%emt 0:07:41]} 16. Nxd4 {[%emt 0:00:49]} Nc4 {[%emt 0:03:33]} 17. Nxc4 {[%emt 0:09:55]} bxc4 {[%emt 0:01:55]} 18. Bxc4 {[%emt 0:00:39]} Bxe4 {[%emt 0:00:52]} 19. Qe2 {[%emt 0:03:05]} a5 {[%emt 0:08:43]} 20. Bd2 {[%emt 0:08:24]} Bb7 {[%emt 0:06:28]} 21. Nf5 {[%emt 0:05:23]} Ne5 {[%emt 0:01:32]} 22. Bb5 {[%emt 0:02:36]} Bf6 {[%emt 0:02:53]} 23. Rad1 {[%emt 0:05:02]} g6 {[%emt 0:03:38]} 24. Ne3 {[%emt 0:08:14]} Bg7 {[%emt 0:21:16]} 25. Bc3 {[%emt 0:02:22]} Qb6 {[%emt 0:04:39]} 26. Nd5 {[%emt 0:06:55]} Qc5 {[%emt 0:02:06]} 27. b4 {[%emt 0:06:53]} axb4 {[%emt 0:03:35]} 28. Bxb4 {[%emt 0:00:03]} Qa7 {[%emt 0:02:24]} 29. Bxd6 {[%emt 0:02:11]} Rfd8 {[%emt 0:01:38]} 30. Bxe5 {[%emt 0:12:46]} Bxd5 {[%emt 0:00:19]} 31. Qb2 {[%emt 0:00:07]} f5 {[%emt 0:01:04]} 32. Bxg7+ {[%emt 0:06:28]} Qxg7 {[%emt 0:00:09]} 33. Qxg7+ {[%emt 0:00:03]} Kxg7 {[%emt 0:00:10]} 34. Rxd5 {[%emt 0:00:07]} Rxd5 {[%emt 0:00:16]} 35. Bc6 {[%emt 0:00:02]} Raa5 {[%emt 0:01:18]} 36. Bxd5 {[%emt 0:00:03]} Rxd5 {[%emt 0:00:13]} 37. Ra1 {[%emt 0:00:03]} Ra5 {[%emt 0:00:26]} 38. Kf1 {[%emt 0:02:22]} Kf6 {[%emt 0:00:08]} 39. Ke2 {[%emt 0:00:03]} Ke5 {[%emt 0:00:19]} 40. Kd3 {[%emt 0:01:03]} Kd5 {[%emt 0:00:12]} 41. Kc3 {[%emt 0:00:25]} Kc6 {[%emt 0:01:02]} 42. Kd4 {[%emt 0:00:44]} Rd5+ {[%emt 0:00:14]} 43. Ke3 {[%emt 0:00:24]} Re5+ {[%emt 0:01:05]} 44. Kf3 {[%emt 0:00:52]} Rc5 {[%emt 0:00:33]} 45. a5 {[%emt 0:01:14]} Kb7 {[%emt 0:00:06]} 46. a6+ {[%emt 0:00:11]} Ka7 {[%emt 0:00:09]} 47. Ra2 {[%emt 0:00:39]} Rc4 {[%emt 0:00:14]} 48. g3 {[%emt 0:01:19]} Rb4 {[%emt 0:02:21]} 49. Ke3 {[%emt 0:00:23]} h5 {[%emt 0:01:47]} 50. h4 {[%emt 0:00:57]} f4+ {[%emt 0:00:22]} 51. gxf4 {[%emt 0:00:58]} Rb3+ {[%emt 0:00:04]} 52. Ke4 {[%emt 0:00:20]} Rh3 {[%emt 0:00:05]} 53. f3 {[%emt 0:01:03]} Rxh4 {[%emt 0:00:29]} 54. Rg2 {[%emt 0:00:21]} Rh1 {[%emt 0:00:50]} 55. Rxg6 {[%emt 0:00:05]} h4 {[%emt 0:01:55]} 56. Rh6 {[%emt 0:00:06]} Ra1 {[%emt 0:00:39]} 57. Rxh4 {[%emt 0:00:58]} Rxa6 {[%emt 0:00:09]} 58. Rh1 {[%emt 0:00:39]} Ra4+ {[%emt 0:01:03]} 59. Kf5 {[%emt 0:00:08]} Kb6 {[%emt 0:00:23]} 60. Rc1 {[%emt 0:00:16]} Ra8 {[%emt 0:00:27]} 61. Kg6 {[%emt 0:00:22]} Ra3 {[%emt 0:00:27]} 62. f5 {[%emt 0:00:11]} Rxf3 {[%emt 0:00:07]} 63. f6 {[%emt 0:00:04]} Rg3+ {[%emt 0:00:06]} 64. Kh7 {[%emt 0:00:06]} Rh3+ {[%emt 0:00:15]} 65. Kg7 {[%emt 0:00:04]} Rg3+ {[%emt 0:00:04]} 66. Kf8 {[%emt 0:00:04]} Kb7 {[%emt 0:01:45]} 67. f7 {[%emt 0:00:07]} Rg2 {[%emt 0:00:08]} 68. Re1 {[%emt 0:00:05]} 1-0

[Event "1st Bangalore GM-Open-A 2024"]
[Site "Bangalore"]
[Date "2024.01.20"]
[Round "4.12"]
[White "Mohamed Anees M"]
[Black "Tahbaz, Arash"]
[Result "1/2-1/2"]
[ECO "B01"]
[WhiteElo "2319"]
[BlackElo "2425"]
[Annotator "RC"]
[PlyCount "114"]
[EventDate "2024.01.20"]
[EventType "swiss"]
[EventCountry "IND"]
[SourceTitle "playchess.com"]
[Source "ChessBase"]
[SourceQuality "1"]
[TimeControl "5400+30"]

1. e4 {[%emt 0:00:04]} d5 {[%emt 0:00:20]} 2. exd5 {[%emt 0:00:07]} Qxd5 {[%emt 0:00:04]} 3. Nc3 {[%emt 0:00:05]} Qa5 {[%emt 0:00:02]} 4. d4 {[%emt 0:00:10]} Nf6 {[%emt 0:00:04]} 5. Nf3 {[%emt 0:00:22]} c6 {[%emt 0:00:04]} 6. Bd2 {[%emt 0:00:14]} Bf5 {[%emt 0:00:13]} 7. Bc4 {[%emt 0:01:15]} Nbd7 {[%emt 0:00:05]} 8. Qe2 {[%emt 0:00:26]} Qc7 {[%emt 0:00:05]} 9. O-O-O {[%emt 0:00:47]} e6 {[%emt 0:00:04]} 10. Nh4 {[%emt 0:00:32]} Bg6 {[%emt 0:00:06]} 11. Bb3 {[%emt 0:00:14]} Bh5 {[%emt 0:05:25]} 12. f3 {[%emt 0:05:05]} O-O-O {[%emt 0:00:05]} 13. Kb1 {[%emt 0:06:32]} Nb6 {[%emt 0:04:41]} 14. Bc1 {[%emt 0:12:37]} Be7 {[%emt 0:11:34]} 15. g4 {[%emt 0:02:51]} Bg6 {[%emt 0:17:12]} 16. Nxg6 {[%emt 0:16:21]} hxg6 {[%emt 0:00:08]} 17. Ne4 {[%emt 0:00:14]} Rd7 {[%emt 0:06:29]} 18. c3 {[%emt 0:05:51]} Kb8 {[%emt 0:03:38]} 19. Nc5 {[%emt 0:05:11]} Rdd8 {[%emt 0:09:19]} 20. Nd3 {[%emt 0:05:29]} Nfd7 {[%emt 0:07:03]} 21. f4 {[%emt 0:09:50]} c5 {[%emt 0:01:22]} 22. dxc5 {[%emt 0:00:33]} Nxc5 {[%emt 0:01:39]} 23. Nxc5 {[%emt 0:00:23]} Bxc5 {[%emt 0:00:24]} 24. Rxd8+ {[%emt 0:02:11]} Rxd8 {[%emt 0:03:15]} 25. Qf3 {[%emt 0:01:25]} a5 {[%emt 0:03:01]} 26. Qe4 {[%emt 0:01:47]} Ka7 {[%emt 0:01:39]} 27. h4 {[%emt 0:01:10]} Nd5 {[%emt 0:01:05]} 28. f5 {[%emt 0:07:08]} gxf5 {[%emt 0:02:31]} 29. gxf5 {[%emt 0:00:05]} Qc6 {[%emt 0:01:05]} 30. Re1 {[%emt 0:02:54]} Rd6 {[%emt 0:07:35]} 31. a4 {[%emt 0:03:33]} Bb6 {[%emt 0:08:17]} 32. Re2 {[%emt 0:02:55]} Qd7 {[%emt 0:03:15]} 33. fxe6 {[%emt 0:02:40]} Rxe6 {[%emt 0:00:08]} 34. Qf5 {[%emt 0:01:00]} g6 {[%emt 0:00:26]} 35. Qh3 {[%emt 0:01:31]} Qe8 {[%emt 0:01:27]} 36. Rxe6 {[%emt 0:00:23]} fxe6 {[%emt 0:00:03]} 37. Qf3 {[%emt 0:01:11]} Qg8 {[%emt 0:02:44]} 38. Bg5 {[%emt 0:00:21]} Bd8 {[%emt 0:00:32]} 39. Qf2+ {[%emt 0:00:40]} Bb6 {[%emt 0:00:10]} 40. Qf1 {[%emt 0:00:49]} Qe8 {[%emt 0:01:00]} 41. Qd3 {[%emt 0:00:21]} Qf7 {[%emt 0:01:37]} 42. Bc2 {[%emt 0:00:48]} Nf4 {[%emt 0:00:18]} 43. Qe4 {[%emt 0:00:32]} Bc7 {[%emt 0:00:55]} 44. Bxf4 {[%emt 0:02:10]} Qxf4 {[%emt 0:00:13]} 45. Qxf4 {[%emt 0:00:03]} Bxf4 {[%emt 0:00:05]} 46. Bxg6 {[%emt 0:00:02]} Kb6 {[%emt 0:00:13]} 47. Be4 {[%emt 0:00:24]} Kc7 {[%emt 0:00:08]} 48. Kc2 {[%emt 0:00:04]} b6 {[%emt 0:00:09]} 49. Kd3 {[%emt 0:00:04]} Kd6 {[%emt 0:00:43]} 50. Kd4 {[%emt 0:00:33]} Ke7 {[%emt 0:00:58]} 51. b4 {[%emt 0:01:03]} axb4 {[%emt 0:00:05]} 52. cxb4 {[%emt 0:00:03]} Kf6 {[%emt 0:00:46]} 53. Kc4 {[%emt 0:01:03]} Kg7 {[%emt 0:00:18]} 54. Kb5 {[%emt 0:00:49]} Be3 {[%emt 0:00:14]} 55. a5 {[%emt 0:00:49]} bxa5 {[%emt 0:00:05]} 56. bxa5 {[%emt 0:00:04]} Kh6 {[%emt 0:00:05]} 57. Bf3 {[%emt 0:00:18]} e5 {[%emt 0:00:04]} 1/2-1/2

[Event "1st Bangalore GM-Open-A 2024"]
[Site "Bangalore"]
[Date "2024.01.20"]
[Round "4.13"]
[White "Deepan Chakkravarthy J."]
[Black "Aakash Sharadchandra, Dalvi"]
[Result "1-0"]
[ECO "A06"]
[WhiteElo "2422"]
[BlackElo "2180"]
[Annotator "RC"]
[PlyCount "91"]
[EventDate "2024.01.20"]
[EventType "swiss"]
[EventCountry "IND"]
[SourceTitle "playchess.com"]
[Source "ChessBase"]
[SourceQuality "1"]
[TimeControl "5400+30"]

1. b3 {[%emt 0:00:15]} d5 {[%emt 0:00:10]} 2. Bb2 {[%emt 0:00:02]} Bf5 {[%emt 0:00:07]} 3. e3 {[%emt 0:00:52]} e6 {[%emt 0:00:11]} 4. Nf3 {[%emt 0:00:40]} c6 {[%emt 0:00:43]} 5. h3 {[%emt 0:00:44]} Nd7 {[%emt 0:01:50]} 6. d3 {[%emt 0:00:38]} h6 {[%emt 0:00:11]} 7. Nbd2 {[%emt 0:00:10]} Ngf6 {[%emt 0:00:21]} 8. Qe2 {[%emt 0:01:19]} Bh7 {[%emt 0:00:32]} 9. g4 {[%emt 0:01:21]} a5 {[%emt 0:00:27]} 10. a4 {[%emt 0:01:41]} b5 {[%emt 0:09:52]} 11. h4 {[%emt 0:06:40]} Bg6 {[%emt 0:08:58]} 12. Bh3 {[%emt 0:19:54]} bxa4 {[%emt 0:04:54]} 13. Rxa4 {[%emt 0:06:03]} Nc5 {[%emt 0:02:57]} 14. Ra1 {[%emt 0:06:53]} Nfd7 {[%emt 0:00:58]} 15. Nd4 {[%emt 0:03:14]} e5 {[%emt 0:13:33]} 16. Nf5 {[%emt 0:11:24]} Bxf5 {[%emt 0:06:20]} 17. gxf5 {[%emt 0:00:06]} Bd6 {[%emt 0:02:25]} 18. Bg2 {[%emt 0:05:33]} O-O {[%emt 0:04:41]} 19. e4 {[%emt 0:02:54]} Nf6 {[%emt 0:03:43]} 20. O-O {[%emt 0:06:18]} Re8 {[%emt 0:01:30]} 21. Rfe1 {[%emt 0:01:03]} Qb6 {[%emt 0:03:48]} 22. Kh1 {[%emt 0:05:47]} Ncd7 {[%emt 0:04:32]} 23. Bc1 {[%emt 0:03:09]} Bc5 {[%emt 0:03:02]} 24. Rf1 {[%emt 0:00:05]} Bd4 {[%emt 0:03:18]} 25. Ra4 {[%emt 0:01:33]} Bc3 {[%emt 0:08:49]} 26. Nb1 {[%emt 0:02:18]} Bb4 {[%emt 0:02:20]} 27. Ra2 {[%emt 0:00:15]} Kh7 {[%emt 0:00:47]} 28. Bf3 {[%emt 0:01:59]} Bc5 {[%emt 0:02:10]} 29. Nc3 {[%emt 0:00:12]} Bd4 {[%emt 0:00:54]} 30. Bd2 {[%emt 0:01:19]} Nc5 {[%emt 0:02:18]} 31. Na4 {[%emt 0:02:49]} Nxa4 {[%emt 0:00:37]} 32. Rxa4 {[%emt 0:00:03]} Qd8 {[%emt 0:01:51]} 33. Kg2 {[%emt 0:00:19]} Nd7 {[%emt 0:01:39]} 34. exd5 {[%emt 0:02:12]} Nc5 {[%emt 0:00:56]} 35. dxc6 {[%emt 0:00:04]} Nxa4 {[%emt 0:03:24]} 36. bxa4 {[%emt 0:00:02]} Qxh4 {[%emt 0:01:19]} 37. Bd5 {[%emt 0:01:10]} Qf6 {[%emt 0:00:41]} 38. Qh5 {[%emt 0:00:06]} Re7 {[%emt 0:00:59]} 39. Rh1 {[%emt 0:01:44]} Kg8 {[%emt 0:00:15]} 40. Qg6 {[%emt 0:00:19]} e4 {[%emt 0:01:14]} 41. Qxf6 {[%emt 0:00:54]} Bxf6 {[%emt 0:00:03]} 42. dxe4 {[%emt 0:00:07]} Be5 {[%emt 0:00:53]} 43. Rb1 {[%emt 0:00:10]} Rb8 {[%emt 0:00:54]} 44. Rxb8+ {[%emt 0:00:41]} Bxb8 {[%emt 0:00:02]} 45. Bxa5 {[%emt 0:00:06]} Ra7 {[%emt 0:00:21]} 46. Bb6 {[%emt 0:00:08]} 1-0

[Event "1st Bangalore GM-Open-A 2024"]
[Site "Bangalore"]
[Date "2024.01.20"]
[Round "4.14"]
[White "Karthikeyan, P.."]
[Black "Ritviz, Parab"]
[Result "0-1"]
[ECO "D38"]
[WhiteElo "2287"]
[BlackElo "2391"]
[Annotator "RC"]
[PlyCount "38"]
[EventDate "2024.01.20"]
[EventType "swiss"]
[EventCountry "IND"]
[SourceTitle "playchess.com"]
[Source "ChessBase"]
[SourceQuality "1"]
[TimeControl "5400+30"]

1. d4 {[%emt 0:05:46]} Nf6 {[%emt 0:00:24]} 2. c4 {[%emt 0:00:16]} e6 {[%emt 0:00:48]} 3. Nf3 {[%emt 0:01:26]} d5 {[%emt 0:00:50]} 4. Nc3 {[%emt 0:00:55]} Bb4 {[%emt 0:00:27]} 5. Qa4+ {[%emt 0:03:30]} Nc6 {[%emt 0:02:11]} 6. e3 {[%emt 0:00:06]} O-O {[%emt 0:05:41]} 7. Bd2 {[%emt 0:00:19]} Re8 {[%emt 0:10:17]} 8. a3 {[%emt 0:00:21]} Bd6 {[%emt 0:07:44]} 9. Rd1 {[%emt 0:02:16]} a6 {[%emt 0:06:09]} 10. h3 {[%emt 0:01:35]} h6 {[%emt 0:01:21]} 11. c5 {[%emt 0:05:57]} Bf8 {[%emt 0:01:11]} 12. b4 {[%emt 0:05:27]} e5 {[%emt 0:04:44]} 13. dxe5 {[%emt 0:01:33]} Nxe5 {[%emt 0:00:27]} 14. Nd4 {[%emt 0:02:22]} Ne4 {[%emt 0:13:47]} 15. Nxe4 {[%emt 0:04:35]} dxe4 {[%emt 0:00:23]} 16. Bc3 {[%emt 0:00:13]} Bd7 {[%emt 0:04:07]} 17. Qc2 {[%emt 0:00:41]} Qh4 {[%emt 0:01:39]} 18. g3 {[%emt 0:03:02]} Qh5 {[%emt 0:01:50]} 19. Qxe4 {[%emt 0:02:14]} Bc6 {[%emt 0:00:26]} 0-1

[Event "1st Bangalore GM-Open-A 2024"]
[Site "Bangalore"]
[Date "2024.01.20"]
[Round "4.15"]
[White "Audi Ameya"]
[Black "Pattnayak Nilsu"]
[Result "1-0"]
[ECO "E06"]
[WhiteElo "2385"]
[BlackElo "1987"]
[Annotator "RC"]
[PlyCount "131"]
[EventDate "2024.01.20"]
[EventType "swiss"]
[EventCountry "IND"]
[SourceTitle "playchess.com"]
[Source "ChessBase"]
[SourceQuality "1"]
[TimeControl "5400+30"]

1. Nf3 {[%emt 0:00:22]} Nf6 {[%emt 0:00:21]} 2. c4 {[%emt 0:00:06]} e6 {[%emt 0:00:07]} 3. g3 {[%emt 0:00:05]} d5 {[%emt 0:00:06]} 4. Bg2 {[%emt 0:00:05]} Be7 {[%emt 0:00:06]} 5. d4 {[%emt 0:01:16]} O-O {[%emt 0:00:19]} 6. Nc3 {[%emt 0:00:20]} dxc4 {[%emt 0:00:50]} 7. Ne5 {[%emt 0:00:06]} Nc6 {[%emt 0:00:13]} 8. Bxc6 {[%emt 0:00:08]} bxc6 {[%emt 0:00:04]} 9. Nxc6 {[%emt 0:00:03]} Qd6 {[%emt 0:00:32]} 10. Nxe7+ {[%emt 0:00:53]} Qxe7 {[%emt 0:00:04]} 11. Qa4 {[%emt 0:00:05]} Bb7 {[%emt 0:04:34]} 12. O-O {[%emt 0:01:46]} c5 {[%emt 0:13:30]} 13. Qxc4 {[%emt 0:00:22]} cxd4 {[%emt 0:00:07]} 14. Qxd4 {[%emt 0:00:08]} e5 {[%emt 0:00:04]} 15. Qh4 {[%emt 0:01:30]} Qe6 {[%emt 0:02:21]} 16. e4 {[%emt 0:04:29]} h6 {[%emt 0:04:05]} 17. Be3 {[%emt 0:15:21]} Kh7 {[%emt 0:07:26]} 18. f3 {[%emt 0:02:12]} a5 {[%emt 0:19:38]} 19. g4 {[%emt 0:03:35]} a4 {[%emt 0:03:27]} 20. a3 {[%emt 0:06:22]} Ba6 {[%emt 0:03:50]} 21. Rf2 {[%emt 0:00:50]} Bc4 {[%emt 0:00:44]} 22. Rd1 {[%emt 0:06:31]} Bb3 {[%emt 0:04:22]} 23. Rd3 {[%emt 0:03:23]} Bc4 {[%emt 0:10:42]} 24. Rdd2 {[%emt 0:00:09]} Kg8 {[%emt 0:02:48]} 25. Rg2 {[%emt 0:04:55]} Nh7 {[%emt 0:02:09]} 26. Qg3 {[%emt 0:05:08]} f6 {[%emt 0:02:57]} 27. h4 {[%emt 0:00:17]} Bb3 {[%emt 0:01:24]} 28. Qe1 {[%emt 0:02:26]} Rad8 {[%emt 0:00:39]} 29. Kh2 {[%emt 0:03:37]} Rfe8 {[%emt 0:01:49]} 30. Qf1 {[%emt 0:03:58]} Qc6 {[%emt 0:01:10]} 31. Qb5 {[%emt 0:08:29]} Qxb5 {[%emt 0:00:39]} 32. Nxb5 {[%emt 0:00:02]} Nf8 {[%emt 0:00:16]} 33. Nd6 {[%emt 0:02:54]} Re7 {[%emt 0:03:15]} 34. g5 {[%emt 0:00:07]} Red7 {[%emt 0:01:08]} 35. Nf5 {[%emt 0:02:25]} Rxd2 {[%emt 0:00:47]} 36. Bxd2 {[%emt 0:00:01]} fxg5 {[%emt 0:02:18]} 37. hxg5 {[%emt 0:00:04]} h5 {[%emt 0:00:24]} 38. Ne7+ {[%emt 0:00:45]} Kf7 {[%emt 0:01:35]} 39. Nc6 {[%emt 0:00:02]} Re8 {[%emt 0:00:11]} 40. Bc3 {[%emt 0:00:03]} Ng6 {[%emt 0:00:10]} 41. Rd2 {[%emt 0:00:12]} Rc8 {[%emt 0:01:43]} 42. Rd7+ {[%emt 0:02:18]} Ke8 {[%emt 0:00:05]} 43. Rd6 {[%emt 0:00:21]} Kf7 {[%emt 0:03:19]} 44. Rxg6 {[%emt 0:00:25]} Kxg6 {[%emt 0:00:18]} 45. Ne7+ {[%emt 0:00:07]} Kxg5 {[%emt 0:00:03]} 46. Bd2+ {[%emt 0:00:34]} Kf6 {[%emt 0:01:33]} 47. Nxc8 {[%emt 0:00:04]} Bd1 {[%emt 0:00:27]} 48. Kg3 {[%emt 0:01:05]} h4+ {[%emt 0:02:01]} 49. Kxh4 {[%emt 0:02:03]} Bxf3 {[%emt 0:00:05]} 50. Nd6 {[%emt 0:00:02]} Ke6 {[%emt 0:01:44]} 51. Bb4 {[%emt 0:00:12]} Kf6 {[%emt 0:00:46]} 52. Kg3 {[%emt 0:00:17]} Bd1 {[%emt 0:00:06]} 53. Bc3 {[%emt 0:00:28]} Bb3 {[%emt 0:00:44]} 54. Nb7 {[%emt 0:00:04]} Bc2 {[%emt 0:00:13]} 55. Nc5 {[%emt 0:00:20]} g5 {[%emt 0:00:22]} 56. Kf3 {[%emt 0:00:18]} Bd1+ {[%emt 0:00:25]} 57. Kf2 {[%emt 0:00:21]} Bc2 {[%emt 0:00:14]} 58. Ke3 {[%emt 0:00:17]} g4 {[%emt 0:00:17]} 59. Nd7+ {[%emt 0:00:04]} Kg5 {[%emt 0:01:21]} 60. Be1 {[%emt 0:00:06]} Bb3 {[%emt 0:00:21]} 61. Nxe5 {[%emt 0:00:12]} Be6 {[%emt 0:00:17]} 62. Nd3 {[%emt 0:00:09]} Bb3 {[%emt 0:00:16]} 63. Nc5 {[%emt 0:00:06]} Bd1 {[%emt 0:00:06]} 64. Bg3 {[%emt 0:00:17]} Bc2 {[%emt 0:00:22]} 65. Kd2 {[%emt 0:00:15]} Bb1 {[%emt 0:00:08]} 66. Kc1 {[%emt 0:00:08]} 1-0

[Event "1st Bangalore GM-Open-A 2024"]
[Site "Bangalore"]
[Date "2024.01.20"]
[Round "4.16"]
[White "Dere Pushkar"]
[Black "Tologon tegin, Semetei"]
[Result "1-0"]
[ECO "B07"]
[WhiteElo "2191"]
[BlackElo "2384"]
[Annotator "RC"]
[PlyCount "69"]
[EventDate "2024.01.20"]
[EventType "swiss"]
[EventCountry "IND"]
[SourceTitle "playchess.com"]
[Source "ChessBase"]
[SourceQuality "1"]
[TimeControl "5400+30"]

1. e4 {[%emt 0:00:10]} c5 {[%emt 0:00:05]} 2. c3 {[%emt 0:00:12]} d6 {[%emt 0:00:22]} 3. d4 {[%emt 0:00:08]} Nf6 {[%emt 0:00:12]} 4. Bd3 {[%emt 0:01:39]} g6 {[%emt 0:00:31]} 5. Nf3 {[%emt 0:01:14]} cxd4 {[%emt 0:00:11]} 6. cxd4 {[%emt 0:00:31]} Bg4 {[%emt 0:00:27]} 7. Nc3 {[%emt 0:05:10]} Bg7 {[%emt 0:00:40]} 8. Qb3 {[%emt 0:09:02]} Bxf3 {[%emt 0:13:56]} 9. gxf3 {[%emt 0:00:26]} Nc6 {[%emt 0:00:26]} 10. Be3 {[%emt 0:06:50]} Nd7 {[%emt 0:22:15]} 11. Ne2 {[%emt 0:18:06]} Rb8 {[%emt 0:21:48]} 12. h4 {[%emt 0:05:19]} b5 {[%emt 0:10:12]} 13. h5 {[%emt 0:04:26]} Qb6 {[%emt 0:01:11]} 14. e5 {[%emt 0:13:24]} dxe5 {[%emt 0:06:10]} 15. h6 {[%emt 0:00:11]} Bf6 {[%emt 0:09:18]} 16. dxe5 {[%emt 0:01:12]} Qa5+ {[%emt 0:00:00]} 17. Bd2 {[%emt 0:00:31]} Qd8 {[%emt 0:00:01]} 18. exf6 {[%emt 0:03:53]} Nc5 {[%emt 0:00:01]} 19. Be4 {[%emt 0:05:36]} Nxb3 {[%emt 0:00:31]} 20. Bxc6+ {[%emt 0:00:09]} Kf8 {[%emt 0:00:01]} 21. axb3 {[%emt 0:01:02]} Qb6 {[%emt 0:06:10]} 22. Be4 {[%emt 0:04:48]} exf6 {[%emt 0:06:28]} 23. Bb4+ {[%emt 0:01:23]} Kg8 {[%emt 0:00:20]} 24. Nc3 {[%emt 0:01:54]} Re8 {[%emt 0:00:40]} 25. Nd5 {[%emt 0:01:07]} Qe6 {[%emt 0:00:05]} 26. Kf1 {[%emt 0:06:32]} f5 {[%emt 0:00:11]} 27. Rxa7 {[%emt 0:01:20]} fxe4 {[%emt 0:00:24]} 28. Ne7+ {[%emt 0:00:06]} Rxe7 {[%emt 0:00:06]} 29. Rxe7 {[%emt 0:00:07]} Qc6 {[%emt 0:01:39]} 30. fxe4 {[%emt 0:00:59]} Qc1+ {[%emt 0:00:04]} 31. Kg2 {[%emt 0:00:24]} Qg5+ {[%emt 0:00:48]} 32. Kf3 {[%emt 0:00:25]} Qf6+ {[%emt 0:00:01]} 33. Kg4 {[%emt 0:00:47]} Qc6 {[%emt 0:00:32]} 34. Rc1 {[%emt 0:00:45]} f5+ {[%emt 0:00:34]} 35. Kh3 {[%emt 0:00:15]} 1-0

[Event "1st Bangalore GM-Open-A 2024"]
[Site "Bangalore"]
[Date "2024.01.20"]
[Round "4.17"]
[White "Dhananjay S"]
[Black "Muthaiah AL"]
[Result "0-1"]
[ECO "B11"]
[WhiteElo "2151"]
[BlackElo "2464"]
[Annotator "RC"]
[PlyCount "50"]
[EventDate "2024.01.20"]
[EventType "swiss"]
[EventCountry "IND"]
[SourceTitle "playchess.com"]
[Source "ChessBase"]
[SourceQuality "1"]
[TimeControl "5400+30"]

1. e4 {[%emt 0:02:17]} c6 {[%emt 0:01:06]} 2. Nf3 {[%emt 0:00:47]} d5 {[%emt 0:01:20]} 3. Nc3 {[%emt 0:00:04]} Bg4 {[%emt 0:01:18]} 4. h3 {[%emt 0:00:05]} Bxf3 {[%emt 0:00:13]} 5. Qxf3 {[%emt 0:00:04]} e6 {[%emt 0:00:18]} 6. Be2 {[%emt 0:00:05]} g6 {[%emt 0:08:06]} 7. d4 {[%emt 0:01:08]} Bg7 {[%emt 0:00:44]} 8. Be3 {[%emt 0:00:22]} Ne7 {[%emt 0:01:29]} 9. O-O-O {[%emt 0:00:59]} Nd7 {[%emt 0:00:51]} 10. g4 {[%emt 0:00:36]} b5 {[%emt 0:07:08]} 11. Kb1 {[%emt 0:03:44]} b4 {[%emt 0:04:20]} 12. Na4 {[%emt 0:00:06]} dxe4 {[%emt 0:06:01]} 13. Qxe4 {[%emt 0:00:28]} Nd5 {[%emt 0:00:09]} 14. Bd2 {[%emt 0:04:04]} Qa5 {[%emt 0:11:21]} 15. b3 {[%emt 0:00:07]} O-O {[%emt 0:00:45]} 16. Qd3 {[%emt 0:08:16]} Rab8 {[%emt 0:14:26]} 17. h4 {[%emt 0:18:18]} Rfd8 {[%emt 0:11:50]} 18. h5 {[%emt 0:03:04]} N7b6 {[%emt 0:01:11]} 19. Nc5 {[%emt 0:13:45]} Nc3+ {[%emt 0:02:20]} 20. Bxc3 {[%emt 0:10:29]} bxc3 {[%emt 0:00:14]} 21. hxg6 {[%emt 0:00:12]} hxg6 {[%emt 0:00:13]} 22. Qg3 {[%emt 0:12:12]} e5 {[%emt 0:10:50]} 23. a4 {[%emt 0:17:07]} exd4 {[%emt 0:03:43]} 24. Ne4 {[%emt 0:00:51]} Nd5 {[%emt 0:04:03]} 25. Bc4 {[%emt 0:03:12]} Qxa4 {[%emt 0:02:12]} 0-1